[Event "Doeberl Cup 2022"]
[Site "Canberra"]
[Date "2022.04.16"]
[Round "6.3"]
[White "Cheng, Bobby"]
[Black "Stojic, Dusan"]
[Result "1-0"]
[ECO "E18"]
[WhiteElo "2550"]
[BlackElo "2240"]
[Annotator "TA"]
[PlyCount "71"]
[EventDate "2022.04.14"]
[EventType "swiss"]
[EventCountry "AUS"]
[SourceTitle "playchess.com"]
[Source "ChessBase"]
[SourceQuality "1"]
[TimeControl "5400+30"]

{[%evp 19,71,30,25,29,26,29,17,17,95,96,86,115,163,155,175,162,133,125,122,120,141,143,150,140,139,141,150,152,149,154,165,146,171,133,172,160,250,252,245,245,802,802,901,907,822,819,916,916,29984,29985,29984,29985,29988,29989]} 1. Nf3 {[%emt 0:00:04]} Nf6 {[%emt 0:03:19]} 2. c4 {[%emt 0:00:08]} e6 {[%emt 0:01:37]} 3. Nc3 {[%emt 0:03:09]} Bb4 {[%emt 0:01:35]} 4. g3 {[%emt 0:03:46]} b6 {[%emt 0:01:51]} 5. Bg2 {[%emt 0:04:55]} Bb7 {[%emt 0:00:08]} 6. O-O {[%emt 0:00:55]} O-O {[%emt 0:01:11]} 7. Qc2 {[%emt 0:00:25]} d5 {[%emt 0:05:03]} 8. cxd5 {[%emt 0:01:14]} exd5 {[%emt 0:01:03]} 9. d4 {[%emt 0:00:14]} Nbd7 {[%emt 0:04:05]} 10. a3 {[%emt 0:03:58]} Be7 {[%emt 0:00:29]} 11. Bf4 {[%emt 0:04:00] E18: Queen's Indian: Old Main Line (4 g3 Bb7 5 Bg2 Be7 6 0-0 0-0 7 Nc3).} c5 {[%emt 0:03:56]} 12. Rfd1 {[%emt 0:01:40]} Rc8 {[%emt 0:04:33] [#]} 13. dxc5 $146 {[%emt 0:09:21] The position is equal.} ({Predecessor:} 13. Rac1 Re8 14. Be5 Ne4 15. dxc5 Nxf2 16. Kxf2 Nxe5 17. Nxe5 Bxc5+ 18. Kf1 Rxe5 19. Qd3 Qf6+ {0-1 (20) Packroff,H-Woldmo,A corr 1988}) 13... bxc5 {[%emt 0:02:11]} (13... Nxc5 $11 {keeps the balance.} 14. Bh3 Ne6) 14. Nh4 $16 {[%emt 0:05:07][%cal Bf3h4,Bh4f5,Bf5e3][%mdl 32]} Nb6 {[%emt 0:06:18]} 15. Nf5 {[%emt 0:00:08]} Re8 {[%emt 0:12:33]} (15... g6 $16) 16. a4 $18 {[%emt 0:05:40][%cal Ba3a4,Ba4a5][%mdl 32] Strongly threatening a5.} Bf8 {[%emt 0:06:54] [#]} 17. a5 $1 {[%emt 0:00:46]} Na8 {[%emt 0:00:34]} 18. Ne3 {[%emt 0:08:46][%cal Rc3d5] &Bianco is much more active.} Nc7 {[%emt 0:02:30]} 19. Bxc7 {[%emt 0:04:38]} Rxc7 {[%emt 0:00:39]} 20. Ncxd5 {[%emt 0:03:05]} Nxd5 {[%emt 0:01:16]} 21. Bxd5 {[%emt 0:00:36]} Qc8 {[%emt 0:02:45]} 22. b3 {[%emt 0:02:57]} g6 {[%emt 0:01:59]} 23. Bxb7 {[%emt 0:00:41]} Rxb7 {[%emt 0:00:14]} 24. Nd5 {[%emt 0:00:46] Prevents Rbe7. Black must now prevent Nf6+.} Re6 {[%emt 0:02:16] Prevents Nf6+.} 25. Rd3 {[%emt 0:01:50]} h5 {[%emt 0:11:50]} 26. h4 {[%emt 0:00:19]} Kh7 {[%emt 0:01:12]} 27. Ra4 {[%emt 0:01:15][%cal Ba1a4,Ba4c4,Bc4c5,Bc5h5][%mdl 32]} Bg7 {[%emt 0:00:34] [#]} (27... Qc6 $16 28. Nf4 Re5) 28. Rc4 $1 {[%emt 0:01:29]} Rb5 {[%emt 0:00:31]} 29. b4 {[%emt 0:00:26]} Qe8 $2 {[%emt 0:02:32]} (29... Qc6 30. Rd1 (30. Rxc5 Rxc5 31. Qxc5 Qxc5 $18) (30. bxc5 Rb2 $16) 30... Bf8) 30. Nc7 {[%emt 0:01:07]} Qc6 {[%emt 0:02:36]} 31. Nxe6 {[%emt 0:03:27]} Qxe6 {[%emt 0:00:14]} 32. Rxc5 {[%emt 0:00:53]} Rxb4 {[%emt 0:00:28] [#]} 33. Rxh5+ $1 {[%emt 0:00:26][%mdl 512]} Kg8 {[%emt 0:00:06]} (33... gxh5 34. Rd4+) 34. Rd8+ {[%emt 0:00:32] White mates.} Bf8 {[%emt 0:00:37] [#]} 35. Qc5 $1 {[%emt 0:03:05][%csl Gd8][%cal Rc5f8]} Rb1+ {[%emt 0:00:53]} (35... gxh5 36. Qxf8+) 36. Kh2 {[%emt 0:00:07] Weighted Error Value: White=0.03 (flawless) /Black=0.49} 1-0

[Event "Doeberl Cup 2022"]
[Site "Canberra"]
[Date "2022.04.16"]
[Round "6.4"]
[White "Clarke, Matthew"]
[Black "Kuybokarov, Temur"]
[Result "0-1"]
[ECO "E81"]
[WhiteElo "2109"]
[BlackElo "2576"]
[Annotator "TA"]
[PlyCount "38"]
[EventDate "2022.04.14"]
[EventType "swiss"]
[EventCountry "AUS"]
[SourceTitle "playchess.com"]
[Source "ChessBase"]
[SourceQuality "1"]
[TimeControl "5400+30"]

{[%evp 14,38,23,10,22,-15,-25,-32,-30,-112,-107,-168,-163,-166,-112,-479,-490,-466,-491,-784,-729,-993,-750,-852,-717,-2174,-1906]} 1. d4 {[%emt 0:02:32]} Nf6 {[%emt 0:03:05]} 2. c4 {[%emt 0:00:11]} g6 {[%emt 0:00:07]} 3. f3 {[%emt 0:00:21]} c5 {[%emt 0:01:14]} 4. d5 {[%emt 0:00:23]} Bg7 {[%emt 0:00:54]} 5. e4 {[%emt 0:00:57]} d6 {[%emt 0:00:21]} 6. Nc3 {[%emt 0:00:26]} e6 {[%emt 0:00:12]} 7. Be3 {[%emt 0:02:46]} O-O {[%emt 0:03:52]} 8. Qd2 {[%emt 0:01:05]} Re8 {[%emt 0:05:02] E81: King's Indian: Sämisch: 6th move deviations (including 6 Be3 c6).} 9. O-O-O {[%emt 0:02:40]} exd5 {[%emt 0:02:08]} 10. exd5 {[%emt 0:01:02]} a6 {[%emt 0:08:13] Black is slightly better.} 11. Bd3 {[%emt 0:05:43]} (11. Bh6 $11) 11... Nbd7 {[%emt 0:02:41][%cal Ob7b5,Bb8d7,Bd7e5,Be5d3][%mdl 32]} (11... b5 {seems wilder.} 12. Bh6 Nbd7 13. cxb5 Ne5) 12. Nge2 {[%emt 0:04:41]} (12. Bh6 $17) 12... Ne5 $19 {[%emt 0:01:09] [#] Hoping for ...Bf5.} 13. Ng3 {[%emt 0:04:15] Prevents Bf5.} b5 {[%emt 0:00:46] [#]} (13... Nxd3+ $19 14. Qxd3 b5) 14. cxb5 $146 {[%emt 0:03:11][%mdl 8192] This costs White the game.} (14. Bf1 $17 {is more resistant.}) ({Predecessor:} 14. Nge4 bxc4 15. Bc2 Nxe4 16. Nxe4 Qb6 17. Nc3 Rb8 18. Bb1 Bf5 19. Bf4 Nd3+ 20. Bxd3 Bxd3 {1-0 (28) Stoyanov,S-Stanchev,P (1847) Sofia 2012}) 14... Nxd3+ {[%emt 0:01:56] Black is clearly winning.} 15. Qxd3 {[%emt 0:00:08]} axb5 {[%emt 0:00:12]} 16. Nxb5 {[%emt 0:13:21]} (16. Rhe1 $142 b4 17. Nce4) 16... Ba6 {[%emt 0:04:03]} 17. a4 {[%emt 0:01:00]} Qa5 {[%emt 0:00:13]} 18. Qd2 {[%emt 0:03:55]} Bxb5 {[%emt 0:04:07]} 19. axb5 {[%emt 0:00:25]} Qxb5 {[%emt 0:00:19] Weighted Error Value: White=1.65/Black=0.32} 0-1

[Event "Doeberl Cup 2022"]
[Site "Canberra"]
[Date "2022.04.16"]
[Round "6.5"]
[White "Sardana, Rishi"]
[Black "Puccini, Jack"]
[Result "1-0"]
[ECO "E05"]
[WhiteElo "2461"]
[BlackElo "2313"]
[Annotator "TA"]
[PlyCount "51"]
[EventDate "2022.04.14"]
[EventType "swiss"]
[EventCountry "AUS"]
[SourceTitle "playchess.com"]
[Source "ChessBase"]
[SourceQuality "1"]
[TimeControl "5400+30"]

{[%evp 10,51,14,10,41,31,39,46,34,32,39,23,35,26,91,89,87,53,62,56,90,94,72,54,137,134,320,339,320,295,339,333,343,333,308,322,338,339,439,441,426,422,435,429]} 1. d4 {[%emt 0:00:16]} d5 {[%emt 0:02:44]} 2. c4 {[%emt 0:00:46]} e6 {[%emt 0:00:06]} 3. Nc3 {[%emt 0:00:14]} Nf6 {[%emt 0:00:07]} 4. Nf3 {[%emt 0:00:18]} Be7 {[%emt 0:00:11]} 5. g3 {[%emt 0:01:08]} dxc4 {[%emt 0:02:14]} 6. Bg2 {[%emt 0:00:49]} c5 {[%emt 0:01:23] E05: Open Catalan: 5 Nf3 Be7.} 7. Qa4+ {[%emt 0:02:13]} Bd7 {[%emt 0:16:33]} 8. Qxc4 {[%emt 0:00:09] [#]} Bc6 $146 {[%emt 0:01:29] Strongly threatening ...cxd4. White is slightly better.} ({Predecessor:} 8... Nc6 9. dxc5 Qa5 10. Be3 Nd5 11. Bd2 Qxc5 12. Qxc5 Bxc5 13. Rc1 Nxc3 14. Bxc3 f6 15. Bxf6 Bxf2+ 16. Kxf2 gxf6 {1-0 (41) Izzat,K (2496)-Solomon,S (2328) Melbourne 2018}) 9. dxc5 {[%emt 0:01:07]} Nbd7 {[%emt 0:03:02]} 10. Be3 {[%emt 0:06:06]} O-O {[%emt 0:12:25]} 11. O-O {[%emt 0:02:26]} Nd5 {[%emt 0:06:27] [#]} (11... Rc8 $11) 12. Bd4 $1 $16 {[%emt 0:04:35] &Bianco is more active.} Qa5 {[%emt 0:04:01][%cal Rd7c5]} 13. Ne4 {[%emt 0:06:22]} Rac8 {[%emt 0:11:13]} 14. a3 {[%emt 0:08:03][%cal Ba2a3,Ba3a4][%mdl 32]} Bb5 {[%emt 0:10:30]} 15. Qc2 {[%emt 0:00:52]} Qa6 {[%emt 0:00:31]} 16. Rfe1 $36 {[%emt 0:03:58][%mdl 2048] Hoping for b4. Black is under pressure.} f5 {[%emt 0:04:10]} ({Black should play} 16... b6 $14) 17. a4 {[%emt 0:07:02]} Bc4 {[%emt 0:00:04] [#] Black cannot hold the game after this.} (17... Nb4 $16 {might work better.} 18. Qb3 (18. axb5 Qxa1 19. Qc4 Qa2 $16) 18... Bc4 19. Qxb4 fxe4) 18. Ned2 $1 $18 {[%emt 0:01:16]} Nxc5 {[%emt 0:11:23]} 19. Qxc4 {[%emt 0:01:49]} ({Not} 19. Nxc4 Nb4 20. Qd1 Qxc4 $14) 19... Qxc4 {[%emt 0:00:13]} 20. Nxc4 {[%emt 0:00:04]} Nb3 {[%emt 0:00:07]} 21. Ne3 {[%emt 0:11:30]} ({Worse is} 21. Bxa7 Nxa1 22. Rxa1 (22. Nb6 Nxb6 23. Rxa1 Nd7 $15) 22... Rxc4 $15) 21... Nxe3 {[%emt 0:01:58]} 22. Bxe3 {[%emt 0:00:07] A strong pair of Bishops.} Nxa1 {[%emt 0:00:06]} 23. Rxa1 {[%emt 0:00:04]} Rc2 {[%emt 0:01:24]} 24. Nd4 {[%emt 0:01:21] White is clearly winning.} Rxb2 {[%emt 0:01:10]} 25. Nxe6 {[%emt 0:00:09]} Rc8 {[%emt 0:00:58]} 26. Bd5 {[%emt 0:00:56] Weighted Error Value: White=0.04 (flawless) /Black=0.31} 1-0

[Event "Doeberl Cup 2022"]
[Site "Canberra"]
[Date "2022.04.16"]
[Round "6.6"]
[White "Winkelman, Albert"]
[Black "Bjelobrk, Igor"]
[Result "1/2-1/2"]
[ECO "B45"]
[WhiteElo "2257"]
[BlackElo "2403"]
[Annotator "TA"]
[PlyCount "77"]
[EventDate "2022.04.14"]
[EventType "swiss"]
[EventCountry "AUS"]
[SourceTitle "playchess.com"]
[Source "ChessBase"]
[SourceQuality "1"]
[TimeControl "5400+30"]

{[%evp 12,77,39,42,44,24,29,23,31,35,50,-13,-2,-118,-74,-98,-84,-79,-80,-89,-103,-174,-169,-136,-141,-153,-43,-49,-6,-6,40,33,37,33,112,112,116,11,49,56,56,49,56,25,57,15,15,10,11,20,15,6,6,5,7,0,8,0,0,0,0,0,0,0,0,0,0,0]} 1. e4 {[%emt 0:00:05]} c5 {[%emt 0:00:11]} 2. Nf3 {[%emt 0:00:12]} e6 {[%emt 0:00:06]} 3. d4 {[%emt 0:00:09]} cxd4 {[%emt 0:00:05]} 4. Nxd4 {[%emt 0:00:10]} Nf6 {[%emt 0:00:12]} 5. Nc3 {[%emt 0:00:24]} Nc6 {[%emt 0:00:06]} 6. Ndb5 {[%emt 0:01:55]} Bc5 {[%emt 0:00:51]} 7. Bf4 {[%emt 0:03:48]} O-O {[%emt 0:00:12] B45: Sicilian Four Knights.} 8. Bc7 {[%emt 0:02:02]} Qe7 {[%emt 0:01:36]} 9. Bd6 $1 {[%emt 0:00:16]} Bxd6 {[%emt 0:00:05] White has an edge.} 10. Qxd6 {[%emt 0:00:34]} Qd8 {[%emt 0:00:08]} 11. Qc7 {[%emt 0:02:53]} (11. Nc7 $14 Rb8 12. Be2) 11... d5 $11 {[%emt 0:00:52] [#]} 12. e5 $146 {[%emt 0:20:47]} (12. Qxd8 $11 Rxd8 13. exd5 exd5 14. Ne2) ({Predecessor:} 12. exd5) 12... Ng4 {[%emt 0:03:02] ...Qg5 is the strong threat.} 13. Qxd8 {[%emt 0:01:34]} Rxd8 {[%emt 0:02:30]} 14. f4 {[%emt 0:00:10]} a6 $1 {[%emt 0:03:35]} (14... Ne3 $6 15. Kd2 $11) 15. Nd6 {[%emt 0:00:27] [#]} f6 $1 {[%emt 0:00:32]} 16. Nxc8 {[%emt 0:00:07]} (16. Na4 $17) 16... Raxc8 $19 {[%emt 0:00:13]} ({Stronger than} 16... Rdxc8 17. exf6 Nb4 18. Bd3 $17) 17. exf6 {[%emt 1:03:27]} Nb4 {[%emt 0:06:10] Pair of Knights!} (17... Nxf6 18. O-O-O $15) 18. Be2 {[%emt 0:00:00] [#]} Nxf6 {[%emt 0:02:49]} ({And not} 18... Nxc2+ 19. Kd2 Nge3 20. Rac1 $17) (18... Ne3 $1 $17 {[%cal Re3c2]} 19. Kf2 d4) 19. O-O-O $15 {[%emt 0:00:00]} d4 {[%emt 0:12:49]} (19... Ne4 $5 {[%cal Re4c3]} 20. Bg4 Nxc3 21. bxc3 Rxc3 $15) 20. a3 {[%emt 0:00:00]} dxc3 {[%emt 0:19:32]} (20... Nc6 $11 {deserves consideration.} 21. Na4 Ne7) 21. axb4 $14 {[%emt 0:00:00]} Nd5 {[%emt 0:02:09]} 22. Rd4 {[%emt 0:00:00]} Ne3 {[%emt 0:00:30] Inhibits Bg4.} (22... cxb2+ $14 23. Kxb2 Ne3 24. Rxd8+ Rxd8) 23. Rxd8+ $16 {[%emt 0:00:00]} Rxd8 {[%emt 0:12:49][%mdl 4096] Endgame KRB-KRN} 24. g3 {[%emt 0:00:00]} (24. bxc3 $16 {aiming for Bf3.} Nxg2 25. Bf3 Nxf4 26. Bxb7) 24... Nxc2 {[%emt 0:00:34]} 25. bxc3 Ne3 {[%emt 0:00:26]} 26. Re1 {[%cal Oe2a6]} Nd5 {[%emt 0:00:30]} 27. Bc4 Rc8 {[%emt 0:00:30]} 28. Bxd5 exd5 $14 {[%emt 0:00:30] KR-KR. The position is equal.} 29. Kd2 {[%emt 0:00:00]} d4 $1 {[%emt 0:00:30]} 30. cxd4 {[%emt 0:00:00]} Rc4 {[%emt 0:00:30][%csl LRb4,LRd4]} 31. Re7 {[%emt 0:00:00]} Rxb4 {[%emt 0:00:30]} 32. Kc3 {[%emt 0:00:00]} a5 {[%emt 0:00:30]} 33. d5 {[%emt 0:00:00] Strongly threatening d6.} Kf8 {[%emt 0:13:38]} 34. Re1 {[%emt 0:00:00]} Kf7 {[%emt 0:18:18]} 35. f5 {[%emt 0:00:00]} b5 36. d6 {[%emt 0:09:30]} Rc4+ {[%emt 0:00:00]} 37. Kd3 {[%emt 0:00:30] And now d7 would win.} Rc6 {[%emt 0:00:00]} 38. Re6 {[%emt 0:00:00] Black must now prevent d7.} Rc8 39. Re7+ {[%emt 0:01:00] Weighted Error Value: White=0.20 (precise) /Black=0.18 (very precise)} 1/2-1/2

[Event "Doeberl Cup 2022"]
[Site "Canberra"]
[Date "2022.04.16"]
[Round "6.7"]
[White "Rodgers, Jack"]
[Black "Ikeda, Junta"]
[Result "0-1"]
[ECO "D00"]
[WhiteElo "2083"]
[BlackElo "2457"]
[Annotator "TA"]
[PlyCount "138"]
[EventDate "2022.04.14"]
[EventType "swiss"]
[EventCountry "AUS"]
[SourceTitle "playchess.com"]
[Source "ChessBase"]
[SourceQuality "1"]
[TimeControl "5400+30"]

{[%evp 9,138,5,19,-31,35,27,26,-16,-1,-14,-7,-16,-13,-28,-16,-16,0,0,0,-19,-12,-19,-16,-25,-21,-50,-46,-38,-47,-42,-32,-57,-57,-33,-49,-94,-94,-150,-125,-124,-115,-268,-247,-258,-196,-204,-195,-195,-70,-88,-64,-77,-77,-79,-18,-81,0,0,0,0,0,-32,0,-8,-8,-21,-16,-8,0,-27,-20,-20,-12,-12,-16,-46,-8,-8,-8,-6103,-5431,-3357,-3209,-29965,-29960,-29970,-29972,-29972,-29972,-29968,-29968,-29975,-29976,-29977,-29974,-29974,-29974,-29974,-29972,-29975,-29960,-29974,-29975,-29975,-29976,-29976,-29977,-29977,-29978,-29982,-29983,-29983,-29982,-29981,-29979,-29981,-29982,-29982,-29983,-29984,-29982,-29984,-29985,-29988,-29989,-29989,-29988,-29988,-29989,-29988,-29989]} 1. d4 {[%emt 1:31:00][%cal Bd2d4,Bd4c5][%mdl 32]} Nf6 {[%emt 1:31:00]} 2. Bg5 {[%emt 0:00:30]} d5 {[%emt 0:00:30]} 3. Bxf6 {[%emt 0:00:30]} gxf6 {[%emt 0:00:30]} 4. e3 {[%emt 0:00:30]} c5 {[%emt 0:00:30]} 5. dxc5 {[%emt 0:00:30]} Nc6 {[%emt 0:00:30]} 6. Nf3 {[%emt 0:00:30] D00: 1 d4 d5: Unusual lines.} (6. Bb5 $11) 6... e6 {[%emt 0:00:30]} ({Better is} 6... e5 $1 $15) 7. c4 $14 {[%emt 0:00:30]} dxc4 {[%emt 0:00:30]} 8. Qxd8+ {[%emt 0:00:30] White has an edge.} Kxd8 {[%emt 0:00:30]} 9. Bxc4 {[%emt 0:00:30]} Bxc5 {[%emt 0:00:30]} 10. Nc3 {[%emt 0:00:30]} Ke7 {[%emt 0:00:30]} 11. a3 {[%emt 0:00:30]} a6 {[%emt 0:00:30]} 12. Ke2 {[%emt 0:00:30]} Ne5 {[%emt 0:00:30]} 13. Nxe5 {[%emt 0:00:30]} fxe5 {[%emt 0:00:30] [#]} 14. b4 $146 {[%emt 0:00:30]} ({Predecessor:} 14. g4 Bd7 15. Bd3 h6 16. Be4 f5 17. gxf5 exf5 18. Bd5 e4 19. Rhg1 Be8 20. Rg7+ {0-1 (33) Timerkhanov,A (2324)-Ivanisevic,I (2623) St Petersburg 2014}) 14... Ba7 {[%emt 0:00:30]} 15. Rac1 {[%emt 0:00:30]} Bd7 {[%emt 0:00:30]} 16. Rhd1 {[%emt 0:00:30]} f5 {[%emt 0:00:30]} 17. g3 {[%emt 0:00:30]} h5 {[%emt 0:00:30]} 18. h4 {[%emt 0:00:30]} Rac8 {[%emt 0:00:30]} 19. Bb3 {[%emt 0:00:30]} Rhg8 {[%emt 0:00:30][%cal Of5f4]} 20. Ke1 {[%emt 0:00:30]} f4 {[%emt 0:00:30]} 21. exf4 {[%emt 0:00:30]} exf4 {[%emt 0:00:30]} 22. Ne4 {[%emt 0:00:30]} fxg3 {[%emt 0:00:30]} 23. Nxg3 {[%emt 0:00:30]} (23. fxg3 $142 Rxc1 24. Rxc1) 23... Rxc1 {[%emt 0:00:30]} 24. Rxc1 {[%emt 0:00:30]} Rf8 {[%emt 0:00:30]} 25. Rc2 {[%emt 0:00:30]} (25. Ne4 $17) 25... Rf3 $19 {[%emt 0:00:30]} 26. Bc4 {[%emt 0:00:30] [#]} Bxf2+ $1 {[%emt 0:00:30][%mdl 512]} 27. Rxf2 {[%emt 0:00:30]} Rxg3 {[%emt 0:00:30][%mdl 4096] Endgame KRB-KRB} 28. Be2 {[%emt 0:00:30]} Be8 {[%emt 0:00:30]} (28... Rxa3 $19 {And now ...Rh3 would win.} 29. Bxh5 Rb3) 29. Rf3 $1 $15 {[%emt 0:00:30]} Rg1+ {[%emt 0:00:30]} 30. Kf2 {[%emt 0:00:30]} Rh1 {[%emt 0:00:30]} 31. Kg3 {[%emt 0:00:30] Inhibits Rh2.} Bg6 {[%emt 0:00:30]} ({Black should play} 31... Rc1 $17) 32. Rc3 {[%emt 0:00:30]} (32. Rf1 $1 $11 {remains equal.} Rxf1 33. Bxf1) 32... Kd6 {[%emt 0:00:30]} (32... Ra1 $17) 33. Bf3 $11 {[%emt 0:00:30][%csl LRb7,LRh1]} Rg1+ {[%emt 0:00:30]} 34. Kf2 {[%emt 0:00:30]} Rb1 {[%emt 0:00:30]} 35. Ke3 {[%emt 0:00:30]} b5 {[%emt 0:00:30]} 36. Rc6+ {[%emt 0:00:30]} Ke5 {[%emt 0:00:30]} 37. Rc5+ {[%emt 0:00:30]} Kf6 {[%emt 0:00:30] ...Rb3+ is the strong threat.} 38. Rc3 {[%emt 0:00:30] Against Rb3} Rb2 {[%emt 0:00:30]} 39. Kf4 {[%emt 0:00:30]} Rh2 {[%emt 0:00:30]} 40. Kg3 {[%emt 0:00:30]} Rd2 {[%emt 0:00:30]} 41. Bb7 {[%emt 0:00:30]} Rd6 {[%emt 0:00:30]} 42. Bf3 {[%emt 0:00:30]} Ke5 {[%emt 0:00:30] With the idea ...Kd4.} 43. Rc5+ {[%emt 0:00:30]} Kd4 {[%emt 0:00:30] Threatens to win with ...e5.} ({Reject} 43... Kf6 $6 44. Rc3 $17) 44. Rc6 $2 {[%emt 0:00:30][%mdl 8192] White is now going downhill.} (44. Bxh5 $11 Bxh5 45. Rxh5) 44... Rxc6 $19 {[%emt 0:00:30]} 45. Bxc6 {[%emt 0:00:30] KB-KB} Kc4 {[%emt 0:00:30] ( -> ...Kb3)} 46. Bb7 {[%emt 0:00:30]} Kb3 {[%emt 0:00:30] Black mates.} 47. Bxa6 {[%emt 0:00:30]} Be8 {[%emt 0:00:30]} 48. Kf4 {[%emt 0:00:30]} Kxa3 {[%emt 0:00:30]} 49. Ke5 {[%emt 0:00:30]} Kxb4 {[%emt 0:00:30]} 50. Kxe6 {[%emt 0:00:30]} Kc5 {[%emt 0:00:30]} 51. Ke5 {[%emt 0:00:30]} Bg6 {[%emt 0:00:30]} 52. Bc8 {[%emt 0:00:30]} Kc4 {[%emt 0:00:30]} 53. Kf6 {[%emt 0:00:30]} Be4 {[%emt 0:00:30]} 54. Kg5 {[%emt 0:00:30]} Bf3 {[%emt 0:00:30]} 55. Bf5 {[%emt 0:00:30]} b4 {[%emt 0:00:30]} 56. Kf4 {[%emt 0:00:30]} Bd1 {[%emt 0:00:30]} 57. Kg5 {[%emt 0:00:30]} b3 {[%emt 0:00:30]} 58. Be6+ {[%emt 0:00:30]} Kc3 {[%emt 0:00:30]} 59. Bf7 {[%emt 0:00:30]} b2 {[%emt 0:00:30]} 60. Ba2 {[%emt 0:00:30]} Kc2 {[%emt 0:00:30]} 61. Kf4 {[%emt 0:00:30]} Kc1 {[%emt 0:00:30]} 62. Kg5 {[%emt 0:00:30] [#]} Bb3 $1 {[%emt 0:00:30][%mdl 512]} 63. Bxb3 {[%emt 0:00:30]} b1=Q {[%emt 0:00:30]} 64. Bf7 {[%emt 0:00:30]} Qh7 {[%emt 0:00:30]} 65. Bxh5 {[%emt 0:00:30]} Qe7+ {[%emt 0:00:30]} 66. Kg4 {[%emt 0:00:30]} Qf6 {[%emt 0:00:30]} 67. Kg3 {[%emt 0:00:30]} Qe5+ {[%emt 0:00:30]} 68. Kg4 {[%emt 0:00:30]} Kd2 {[%emt 0:00:30]} 69. Bg6 {[%emt 0:00:30]} Ke3 {[%emt 0:00:30] Weighted Error Value: White=0.35/Black=0.12 (very precise)} 0-1

[Event "Doeberl Cup 2022"]
[Site "Canberra"]
[Date "2022.04.17"]
[Round "7.1"]
[White "Cheng, Bobby"]
[Black "Melkumyan, Hrant"]
[Result "1/2-1/2"]
[ECO "E04"]
[WhiteElo "2550"]
[BlackElo "2649"]
[Annotator "TA"]
[PlyCount "34"]
[EventDate "2022.04.14"]
[EventType "swiss"]
[EventCountry "AUS"]
[SourceTitle "playchess.com"]
[Source "ChessBase"]
[SourceQuality "1"]
[TimeControl "5400+30"]

{[%evp 16,34,27,18,26,0,3,0,20,0,35,14,7,10,25,18,33,0,0,0,47]} 1. d4 {[%emt 0:03:23]} Nf6 {[%emt 0:10:02]} 2. c4 {[%emt 0:00:04]} e6 {[%emt 0:00:11]} 3. Nf3 {[%emt 0:00:30]} d5 {[%emt 0:00:11][%cal Bd7d5,Bd5c4][%mdl 32]} 4. g3 {[%emt 0:00:08]} dxc4 {[%emt 0:00:11]} 5. Bg2 {[%emt 0:00:05]} c5 {[%emt 0:00:09]} 6. O-O {[%emt 0:00:26]} Nc6 {[%emt 0:00:14]} 7. Qa4 {[%emt 0:00:08]} Bd7 {[%emt 0:00:25]} 8. dxc5 {[%emt 0:00:13]} Bxc5 {[%emt 0:02:48]} 9. Qxc4 {[%emt 0:00:05]} Be7 {[%emt 0:00:23] E04: Open Catalan: 5 Nf3.} 10. e4 {[%emt 0:06:24]} O-O {[%emt 0:01:20]} 11. Nc3 {[%emt 0:00:51]} Qa5 {[%emt 0:05:19]} 12. Rd1 {[%emt 0:04:35]} Rfd8 {[%emt 0:04:17]} 13. Qe2 {[%emt 0:01:02] [#]} Be8 $146 {[%emt 0:03:54]} ({Predecessor:} 13... Ng4 14. h3 Nge5 15. Nxe5 Nxe5 16. f4 Bc5+ 17. Kh2 Nc6 18. Be3 f6 19. Bxc5 Qxc5 {½-½ (67) Gelfand,B (2703)-Adams,M (2712) Batumi 2018}) 14. Bd2 {[%emt 0:02:08][%cal Oc3d5]} Qb6 {[%emt 0:08:08]} 15. Be3 {[%emt 0:10:04]} Qa5 {[%emt 0:00:29]} 16. Bd2 {[%emt 0:03:11]} Qb6 {[%emt 0:00:23]} 17. Be3 {[%emt 0:01:31]} Qa5 {[%emt 0:00:58] A rather calm draw.  Weighted Error Value: White=0.08 (flawless) /Black=0.05 (flawless)} 1/2-1/2